fUSD/lending_fUSD_20260410
["ID","MTS","AMOUNT","RATE_DAILY","PERIOD"]
[420184720,1775758240286,-102066.71236371,0.000156,2]
[420184721,1775758240299,-1268.6944,0.000156,2]
[420184722,1775758240310,-2686.26121667,0.000156,2]
[420184723,1775758240322,-10187.24356323,0.000156,2]
[420184724,1775758240333,-6566.66693677,0.000156,2]
[420184725,1775758240358,-99883.82514107,0.000156,2]
[420184726,1775758240368,-11351.69645596,0.000156,2]
[420184727,1775758240551,-250.0,0.00010336,2]
[420184728,1775758240561,-501.47362819,0.00014759,2]
[420184729,1775758240572,-1652.27519429,0.00014759,2]
[420184730,1775758240606,-1619.25117752,0.00014759,2]
[420184731,1775758240616,-96061.55753011,0.000156,2]
[420184732,1775758240631,-3599.9,0.000156,2]
[420184733,1775758240987,-570.86195363,0.000156,2]
[420184734,1775758240999,-500.0,0.000156,2]
[420184735,1775758241011,-1347.27935409,0.000156,2]
[420184736,1775758241022,-1093.06431192,0.000156,2]
[420184754,1775758243030,-151.0,0.00014131,2]
[420184755,1775758243039,-12755.57788254,0.000156,2]
[420184756,1775758243051,-478.97201987,0.000156,2]
[420184757,1775758243085,-3200.0,0.000156,2]
[420184758,1775758243096,-39340.86465648,0.000156,2]
[420184759,1775758243105,-202373.45674912,0.000156,2]
[420184760,1775758243140,-15633.17424791,0.000156,2]
[420184761,1775758243151,-1607.59263891,0.000156,2]
[420184762,1775758243350,-81128.20455882,0.000156,2]
[420184763,1775758243359,-33236.09333391,0.000156,2]
[420184764,1775758243390,-17365.03287662,0.000156,2]
[420184826,1775758245948,-182.0,0.00010488,2]
[420184827,1775758245958,-210.949481,0.00014684,7]
[420184828,1775758245967,-12246.87046598,0.000156,2]
[420184829,1775758245979,-5454.99784789,0.000156,2]
[420184830,1775758246349,-2528.300001,0.000156,2]
[420184831,1775758246394,-441.36,0.00014759,2]
[420184832,1775758246409,-5581.64,0.00014759,2]
[420184833,1775758246419,-121582.80838376,0.000156,2]
[420184834,1775758246428,-309533.00165717,0.000156,2]
[420184835,1775758246477,-438.20889972,0.000156,2]
[420184844,1775758653751,1126.61734819,9e-05,3]
[420184845,1775758653785,1405.34622115,9e-05,3]
[420184847,1775759206880,158.84,6.575e-05,2]
[420184848,1775759207083,158.84,7.306e-05,2]
[420184849,1775759207295,158.84,8.037e-05,2]
[420184850,1775759207498,158.84,8.767e-05,2]
[420184851,1775759255803,200.0,9e-05,3]
[420184852,1775759258364,187.0,8.901e-05,2]
[420184853,1775759368929,-2849.904,9.111e-05,2]
[420184854,1775759368956,-171.636,9.111e-05,2]
[420184855,1775759368983,-300.0,9.196e-05,2]
[420184856,1775759369014,-57315.83225135,9.197e-05,2]
[420184858,1775759432106,-1134.09669,9.197e-05,2]
[420184859,1775759432166,-926.46695865,9.197e-05,2]
[420184860,1775759432175,-500.0,9.273e-05,2]
[420184861,1775759432185,-500.0,9.273e-05,2]
[420184862,1775759432194,-500.0,9.273e-05,2]
[420184863,1775759432203,-518.59345507,9.273e-05,2]
[420184864,1775759432213,-1200.0,9.294e-05,2]
[420184865,1775759432222,-500.0,9.296e-05,2]
[420184866,1775759432231,-500.0,9.296e-05,2]
[420184867,1775759432240,-500.0,9.296e-05,2]
[420184868,1775759432251,-500.0,9.296e-05,2]
[420184869,1775759432260,-500.0,9.296e-05,2]
[420184870,1775759432270,-500.0,9.296e-05,2]
[420184871,1775759432279,-500.0,9.296e-05,2]
[420184872,1775759432289,-500.0,9.296e-05,2]
[420184873,1775759432298,-500.0,9.296e-05,2]
[420184874,1775759432308,-500.0,9.296e-05,2]
[420184875,1775759432317,-500.0,9.296e-05,2]
[420184876,1775759432329,-224.84634758,9.296e-05,2]
[420184877,1775759432339,-500.0,9.296e-05,2]
[420184878,1775759432348,-150.0,9.296e-05,2]
[420184879,1775759432358,-300.0,9.296e-05,2]
[420184880,1775759432369,-371236.47817698,9.297e-05,2]
[420184881,1775759432382,-84541.38028417,9.297e-05,2]
[420184882,1775759432394,-109239.76831157,9.297e-05,2]
[420184883,1775759432405,-1254.41808677,9.297e-05,2]
[420184884,1775759432421,-8571.41146574,9.297e-05,2]
[420184885,1775759432437,-1641.08280428,9.297e-05,2]
[420184886,1775759432448,-3930.98986986,9.297e-05,2]
[420184887,1775759432463,-450.0,9.297e-05,2]
[420184888,1775759432516,-445.42679402,9.297e-05,2]
[420184890,1775759438210,-2412.54565287,9.297e-05,2]
[420184891,1775759438222,-1398.13010245,9.297e-05,2]
[420184892,1775759438344,-38.817126,9.297e-05,2]
[420184893,1775759438397,-1466.38808259,9.297e-05,2]
[420184894,1775759438524,-156456.88425788,9.297e-05,2]
[420184895,1775759438537,-348.86399406,9.297e-05,2]
[420184896,1775759438551,-2874.07648741,9.297e-05,2]
[420184897,1775759440584,-8957.40077379,9.297e-05,2]
[420184950,1775759443701,-334.13828703,9.297e-05,2]
[420184976,1775759446590,-4414.00000001,9.297e-05,2]
[420184977,1775759446612,-440.98,9.297e-05,2]
[420184978,1775759446633,-416.7023,9.011e-05,2]
[420184980,1775759446642,-885.34036892,9.297e-05,2]
[420185013,1775760318071,-0.00804626,0.0001611,120]
[420185014,1775760318120,-411.0,0.0001938,120]
[420185015,1775760318147,-3271.82267816,0.0002,120]
[420185016,1775760318169,-1317.16927558,0.0002,120]
[420185031,1775760634102,-300.0,8.914e-05,2]
[420185033,1775760634112,-1200.0,8.914e-05,2]
[420185035,1775760634121,-250.0,8.915e-05,2]
[420185037,1775760634131,-2984.485,8.915e-05,2]
[420185039,1775760634141,-177.289,8.915e-05,2]
[420185041,1775760634150,-198.39676812,8.915e-05,2]
[420185043,1775760634160,-250.0,8.981e-05,2]
[420185045,1775760634169,-120265.84095796,8.996e-05,2]
[420185047,1775760634183,-49234.36787203,8.996e-05,2]
[420185049,1775760634195,-29767.35987575,8.996e-05,2]
[420185052,1775760634206,-24353.88385143,8.996e-05,2]
[420185054,1775760634225,-276.53915722,8.996e-05,2]
[420185122,1775760638406,-2177.22698561,8.996e-05,2]
[420185123,1775760638417,-11135.5084,8.997e-05,2]
[420185124,1775760638432,-500.0,9.073e-05,2]
[420185125,1775760638446,-150.0,9.085e-05,2]
[420185126,1775760638481,-37117.10113965,9.086e-05,2]
[420185127,1775760638492,-500.0,9.096e-05,2]
[420185128,1775760638501,-153779.9864,9.097e-05,2]
[420185129,1775760638511,-3382.38048782,9.21e-05,2]
[420185130,1775760638521,-1527.0,9.297e-05,2]
[420185131,1775760638531,-1527.0,9.297e-05,2]
[420185132,1775760638541,-152.0,9.297e-05,2]
[420185133,1775760638550,-1527.0,9.297e-05,2]
[420185134,1775760638560,-152.0,9.297e-05,2]
[420185135,1775760638569,-173.32496857,9.297e-05,2]
[420185136,1775760638579,-152.0,9.297e-05,2]
[420185137,1775760638589,-152.0,9.297e-05,2]
[420185138,1775760638598,-152.0,9.297e-05,2]
[420185139,1775760638607,-152.0,9.297e-05,2]
[420185140,1775760638617,-159.88645984,9.297e-05,2]
[420185141,1775760638627,-152.0,9.297e-05,2]
[420185142,1775760638636,-500.0,9.297e-05,2]
[420185143,1775760638646,-152.0,9.297e-05,2]
[420185144,1775760638655,-150.0,9.3e-05,2]
[420185145,1775760638665,-1713.4282004,9.353e-05,2]
[420185146,1775760638674,-500.0,9.37e-05,2]
[420185147,1775760638684,-158.84,9.498e-05,2]
[420185148,1775760638693,-1000.0,9.621e-05,2]
[420185149,1775760638703,-150.0,9.627e-05,2]
[420185150,1775760638713,-500.0,9.644e-05,2]
[420185151,1775760638722,-151.0,9.752e-05,2]
[420185152,1775760638732,-1680.0,9.805e-05,2]
[420185153,1775760638742,-250.0,9.805e-05,2]
[420185154,1775760638752,-255.0,9.993e-05,2]
[420185155,1775760638761,-599.4,0.0001,2]
[420185156,1775760638771,-500.0,0.0001,2]
[420185157,1775760638780,-200.0,0.0001,2]
[420185158,1775760638790,-500.0,0.0001,2]
[420185159,1775760638800,-500.0,0.0001,2]
[420185160,1775760638809,-164.92485624,0.0001,2]
[420185161,1775760638819,-500.0,0.0001,2]
[420185162,1775760638828,-500.0,0.0001,2]
[420185163,1775760638838,-500.0,0.0001,2]
[420185164,1775760638847,-500.0,0.0001,2]
[420185165,1775760638856,-500.0,0.0001,2]
[420185166,1775760638867,-500.0,0.0001,2]
[420185167,1775760638877,-1156.41848616,0.0001,2]
[420185168,1775760638887,-500.0,0.0001,2]
[420185169,1775760638896,-500.0,0.0001,2]
[420185171,1775760638906,-500.0,0.0001,2]
[420185173,1775760638916,-500.0,0.0001,2]
[420185175,1775760638925,-500.0,0.0001,2]
[420185177,1775760638935,-500.0,0.0001,2]
[420185179,1775760638944,-500.0,0.0001,2]
[420185181,1775760638954,-538.93140846,0.0001,2]
[420185184,1775760638969,-151.0,0.0001,2]
[420185186,1775760638979,-151.0,0.0001,2]
[420185188,1775760638989,-151.0,0.0001,2]
[420185190,1775760638999,-151.0,0.0001,2]
[420185192,1775760639009,-151.0,0.0001,2]
[420185194,1775760639018,-151.0,0.0001,2]
[420185195,1775760639030,-151.0,0.0001,2]
[420185196,1775760639040,-151.0,0.0001,2]
[420185197,1775760639050,-151.0,0.0001,2]
[420185198,1775760639061,-151.0,0.0001,2]
[420185199,1775760639072,-151.0,0.0001,2]
[420185200,1775760639083,-151.0,0.0001,2]
[420185201,1775760639093,-151.0,0.0001,2]
[420185202,1775760639104,-388.74322432,0.00010136,2]
[420185203,1775760639114,-1500.0,0.00010168,2]
[420185204,1775760639124,-158.84,0.00010228,2]
[420185205,1775760639134,-599.4,0.00010274,2]
[420185206,1775760639144,-6927.93389828,0.00010355,2]
[420185207,1775760639154,-599.4,0.00010548,2]
[420185208,1775760639165,-200.0,0.00010548,2]
[420185209,1775760639175,-1156.41848616,0.00010548,2]
[420185210,1775760639185,-175.4661,0.000107,2]
[420185211,1775760639195,-1500.0,0.00010716,2]
[420185212,1775760639206,-2351.0,0.00010786,2]
[420185214,1775760639215,-599.4,0.00010822,2]
[420185216,1775760639225,-1344.26987408,0.000109,2]
[420185218,1775760639235,-1344.26987402,0.000109,2]
[420185220,1775760639245,-500.0,0.00010959,2]
[420185222,1775760639257,-158.84,0.00010959,2]
[420185224,1775760639296,-1344.26987402,0.00010969,2]
[420185226,1775760639307,-433.0,0.00010992,2]
[420185228,1775760639317,-599.4,0.00011096,2]
[420185230,1775760639328,-1862.30260436,0.00011099,2]
[420185232,1775760639338,-1862.30260435,0.00011099,2]
[420185235,1775760639348,-1862.30260435,0.00011099,2]
[420185237,1775760639358,-5967.8950943,0.00011099,2]
[420185239,1775760639369,-5967.89509421,0.00011099,2]
[420185241,1775760639379,-5967.89509421,0.00011099,2]
[420185243,1775760639389,-200.0,0.000112,2]
[420185245,1775760639398,-250.0,0.00011246,2]
[420185247,1775760639408,-5967.89509421,0.00011298,2]
[420185249,1775760639417,-1862.30260435,0.00011298,2]
[420185251,1775760639427,-158.84,0.0001169,2]
[420185253,1775760639437,-3292.0,0.00011865,2]
[420185255,1775760639446,-500.0,0.00011893,2]
[420185257,1775760639456,-1344.26987402,0.00011955,2]
[420185259,1775760639466,-5967.89509421,0.00012065,2]
[420185261,1775760639476,-1862.30260435,0.00012065,2]
[420185263,1775760639485,-736.0,0.00012092,2]
[420185265,1775760639495,-205.2557,0.000121,2]
[420185267,1775760639504,-163.89,0.00012112,2]
[420185269,1775760639514,-6801.71,0.00012185,2]
[420185271,1775760639524,-158.84,0.0001242,2]
[420185273,1775760639533,-500.0,0.00012584,2]
[420185275,1775760639544,-2890.45,0.00012812,2]
[420185277,1775760639554,-5967.89509421,0.00012832,2]
[420185279,1775760639564,-1862.30260435,0.00012832,2]
[420185281,1775760639573,-1678.99,0.00012841,2]
[420185283,1775760639583,-1163.79,0.00012878,2]
[420185285,1775760639593,-2000.0,0.00012904,2]
[420185288,1775760639603,-16286.50924685,0.00012917,2]
[420185291,1775760639621,-276.55142799,0.00012917,2]
[420185293,1775760639633,-429.98569077,0.00012917,2]
[420185295,1775760639645,-1222.38705257,0.00012917,2]
[420185297,1775760639657,-1406.60332149,0.00012917,2]
[420185300,1775760639670,-1576.09795202,0.00012917,2]
[420185325,1775760639898,-187.0,0.0001938,120]
[420185329,1775760639928,-605.69917591,0.0002,120]
[420185333,1775760639953,-411.0,0.00020349,120]
[420185337,1775760639976,-187.0,0.00020349,120]
[420185340,1775760640012,-206.0,0.000204,120]
[420185344,1775760640047,-411.0,0.00021366,120]
[420185347,1775760640070,-187.0,0.00021366,120]
[420185351,1775760640095,-206.0,0.0002142,120]
[420185355,1775760640129,-411.0,0.00022435,120]
[420185359,1775760640151,-187.0,0.00022435,120]
[420185362,1775760640174,-206.0,0.00022491,120]
[420185366,1775760640196,-152.30861178,0.000226,120]
[420185369,1775760640218,-150.0,0.00022853,120]
[420185372,1775760640241,-302.3354671,0.00023505,120]
[420185376,1775760640265,-187.0,0.00023557,120]
[420185379,1775760640289,-169.08,0.00024604,120]
[420185383,1775760640316,-187.0,0.00024734,120]
[420185386,1775760640344,-424.21558072,0.00025,120]
[420185390,1775760640367,-500.0,0.00025262,120]
[420185393,1775760640393,-187.0,0.00025971,120]
[420185397,1775760640415,-253.62,0.0002602,120]
[420185399,1775760640430,-3586.29530831,0.00012917,2]
[420185401,1775760640440,-160.0,0.00012923,2]
[420185403,1775760640449,-1344.26987402,0.00012942,2]
[420185405,1775760640459,-250.0,0.00013,2]
[420185407,1775760640468,-166.66,0.00013011,2]
[420185436,1775760640933,-1223.07481767,0.00013051,2]
[420185437,1775760640946,-335.0,0.00013051,2]
[420185441,1775760643501,-475.92518233,0.00013051,2]
[420185442,1775760643510,-505.0,0.000131,2]
[420185443,1775760643520,-158.84,0.00013151,2]
[420185444,1775760643530,-1252.0,0.000133,2]
[420185445,1775760643538,-260.4,0.00013321,2]
[420185446,1775760643548,-166.66,0.00013441,2]
[420185447,1775760643557,-1500.0,0.00013465,2]
[420185448,1775760643566,-240.1027,0.000135,2]
[420185449,1775760643575,-5967.89509421,0.00013599,2]
[420185450,1775760643585,-1862.30260435,0.00013599,2]
[420185451,1775760643594,-142.8331658,0.00013698,2]
[420185511,1775760647043,-357.1668342,0.00013698,2]
[420185512,1775760647052,-500.0,0.00013698,2]
[420185513,1775760647061,-500.0,0.00013698,2]
[420185514,1775760647070,-500.0,0.00013698,2]
[420185515,1775760647079,-453.8331658,0.00013698,2]
[420185516,1775760647091,-46.1668342,0.00013698,2]
[420185517,1775760647101,-500.0,0.00013698,2]
[420185518,1775760647110,-500.0,0.00013698,2]
[420185519,1775760647120,-500.0,0.00013698,2]
[420185520,1775760647130,-3069.0,0.00013699,2]
[420185521,1775760647139,-150.0,0.00013699,2]
[420185522,1775760647148,-150.0,0.00013699,2]
[420185523,1775760647158,-150.0,0.00013699,2]
[420185524,1775760647167,-150.0,0.00013699,2]
[420185525,1775760647176,-821.18,0.00013699,2]
[420185526,1775760647185,-166.66,0.00013699,2]
[420185527,1775760647195,-169.74,0.00013699,2]
[420185528,1775760647205,-1000.0,0.00013699,2]
[420185529,1775760647215,-500.0,0.00013726,2]
[420185530,1775760647225,-166.66,0.00013836,2]
[420185531,1775760647235,-166.66,0.0001387,2]
[420185532,1775760647245,-1344.26987402,0.00013928,2]
[420185533,1775760647255,-150.0,0.00013973,2]
[420185534,1775760647265,-166.66,0.00013973,2]
[420185535,1775760647275,-154.00329521,0.00014,2]
[420185536,1775760647287,-55.39473379,0.00014,2]
[420185537,1775760647296,-196.022773,0.00014079,7]
[420185538,1775760647305,-271.317381,0.00014079,7]
[420185539,1775760647315,-211.699479,0.00014079,2]
[420185540,1775760647324,-166.66,0.0001411,2]
[420185541,1775760647335,-505.0,0.00014162,2]
[420185542,1775760647346,-265.36742374,0.00014224,2]
[420185543,1775760647356,-495.73304942,0.00014224,2]
[420185544,1775760647366,-1201.74948322,0.00014225,2]
[420185545,1775760647376,-240.100258,0.00014227,7]
[420185546,1775760647385,-440.097806,0.00014227,2]
[420185547,1775760647395,-160.0,0.00014227,7]
[420185548,1775760647434,-203.419856,0.00014227,7]
[420185549,1775760647443,-246.839713,0.00014227,7]
[420185550,1775760647452,-189.12508,0.00014232,7]
[420185551,1775760647462,-166.66,0.00014247,2]
[420185552,1775760647471,-150.0,0.00014247,2]
[420185553,1775760647480,-162.0,0.00014275,2]
[420185554,1775760647489,-166.66,0.000143,2]
[420185555,1775760647499,-1123.35296366,0.00014366,2]
[420185556,1775760647513,-4844.54213055,0.00014366,2]
[420185557,1775760647525,-615.45787091,0.00014366,2]
[420185558,1775760647541,-1246.84473344,0.00014366,2]
[420185559,1775760647551,-439.15526456,0.00014384,2]
[420185560,1775760650040,-182.82419012,8.995e-05,2]
[420185561,1775760650050,-185.23749901,8.995e-05,2]
[420185562,1775760650059,-500.0,8.995e-05,2]
[420185563,1775760650069,-276.36674527,8.995e-05,2]
[420185564,1775760650079,-3240.0,0.00013877,2]
[420185565,1775760650093,-382.02473544,0.00014384,2]
[420185566,1775760650117,-166.66,0.00014384,2]
[420185567,1775760650126,-181.963406,0.00014401,2]
[420185568,1775760650135,-2000.0,0.00014517,2]
[420185569,1775760650144,-160.0,0.00014523,7]
[420185570,1775760650153,-196.261874,0.00014523,7]
[420185571,1775760650162,-232.523749,0.00014523,7]
[420185572,1775760650171,-210.476515,0.00014523,7]
[420185573,1775760650180,-168.0,0.00014557,2]
[420185574,1775760650190,-168.0,0.00014586,2]
[420185575,1775760650199,-168.0,0.00014649,2]
[420185576,1775760650208,-168.0,0.00014673,2]
[420185577,1775760650217,-168.0,0.00014683,2]
[420185578,1775760650227,-168.0,0.00014687,2]
[420185579,1775760650236,-1573.0,0.00014688,2]
[420185580,1775760650246,-168.0,0.00014695,2]
[420185581,1775760650255,-168.0,0.00014695,2]
[420185582,1775760650265,-168.0,0.00014698,2]
[420185583,1775760650274,-200.0,0.00014726,2]
[420185584,1775760650284,-166.66,0.00014729,2]
[420185585,1775760650293,-2567.0,0.00014777,2]
[420185586,1775760650303,-150.0,0.00014777,2]
[420185587,1775760650313,-168.0,0.00014789,2]
[420185588,1775760650322,-168.0,0.00014801,2]
[420185589,1775760650331,-272.64015626,0.00014816,2]
[420185590,1775760650341,-168.78193737,0.00014816,2]
[420185591,1775760650350,-166.12692014,0.00014816,2]
[420185592,1775760650359,-174.61919141,0.00014819,2]
[420185593,1775760650370,-601.3376128,0.00014819,2]
[420185594,1775760650381,-11564.18486161,0.00014819,2]
[420185595,1775760650391,-1191.11104075,0.00014819,2]
[420185596,1775760650401,-200.0,0.00014819,2]
[420185597,1775760650410,-174.61919141,0.00014819,2]
[420185598,1775760650420,-578.20924308,0.00014819,2]
[420185599,1775760650431,-500.0,0.00014819,2]
[420185600,1775760650441,-170.0,0.00014819,2]
[420185601,1775760650450,-170.0,0.00014819,2]
[420185602,1775760650460,-170.0,0.00014819,2]
[420185603,1775760650471,-170.0,0.00014819,2]
[420185604,1775760650481,-170.0,0.00014819,2]
[420185605,1775760650492,-170.0,0.00014819,2]
[420185606,1775760650502,-170.0,0.00014819,2]
[420185607,1775760650512,-170.0,0.00014819,2]
[420185608,1775760650522,-151.0,0.00014819,2]
[420185609,1775760650532,-545.21592188,0.00014819,2]
[420185610,1775760650541,-168.0,0.00014826,2]
[420185611,1775760650551,-168.0,0.00014842,2]
[420185612,1775760650560,-1573.0,0.00014844,2]
[420185613,1775760650570,-500.0,0.00014874,2]
[420185614,1775760650579,-158.0,0.0001489,5]
[420185615,1775760650589,-225.59148919,0.0001489,2]
[420185616,1775760650598,-158.76593512,0.00014891,2]
[420185617,1775760650607,-596.24805266,0.00014891,2]
[420185618,1775760650616,-285.54973246,0.000149,2]
[420185619,1775760669441,164.06229172,0.000261,120]
[420185620,1775760690929,-500.67887277,0.00026137,120]
[420185621,1775761119134,181.4939,8.885e-05,2]
[420185622,1775761276413,15898.5786,8.885e-05,2]
[420185626,1775761628158,5055.3463,8.885e-05,2]
[420185627,1775761672414,400506.5717,8.884e-05,2]
[420185629,1775761758993,61152.6391,8.884e-05,2]
[420185630,1775761768211,-300.0,8.982e-05,2]
[420185631,1775761768234,-1200.0,8.982e-05,2]
[420185632,1775761768254,-282.17268396,8.982e-05,2]
[420185633,1775761768277,-150.0,8.983e-05,2]
[420185634,1775761768299,-200.0,8.983e-05,2]
[420185635,1775761768320,-418.53,8.984e-05,2]
[420185636,1775761768346,-733.07335135,8.984e-05,2]
[420185637,1775761768372,-733.07335135,8.984e-05,2]
[420185638,1775761768396,-733.07335135,8.984e-05,2]
[420185639,1775761768422,-733.07335135,8.984e-05,2]
[420185640,1775761768446,-733.07335135,8.984e-05,2]
[420185641,1775761768471,-733.07335135,8.984e-05,2]
[420185642,1775761768495,-733.07335135,8.984e-05,2]
[420185643,1775761768520,-733.07335135,8.984e-05,2]
[420185644,1775761768545,-733.07335135,8.984e-05,2]
[420185645,1775761768569,-733.07335135,8.984e-05,2]
[420185646,1775761768594,-733.07335135,8.984e-05,2]
[420185647,1775761768618,-733.07335135,8.984e-05,2]
[420185648,1775761768641,-733.07335135,8.984e-05,2]
[420185649,1775761768664,-733.07335135,8.984e-05,2]
[420185650,1775761768688,-733.07335135,8.984e-05,2]
[420185651,1775761768712,-733.07335135,8.984e-05,2]
[420185652,1775761768736,-733.07335135,8.984e-05,2]
[420185653,1775761768760,-733.07335135,8.984e-05,2]
[420185654,1775761768783,-733.07335135,8.984e-05,2]
[420185655,1775761768807,-733.07335135,8.984e-05,2]
[420185656,1775761768830,-733.07335135,8.984e-05,2]
[420185657,1775761768854,-733.07335135,8.984e-05,2]
[420185658,1775761768879,-733.07335135,8.984e-05,2]
[420185659,1775761768903,-733.07335135,8.984e-05,2]
[420185660,1775761768947,-733.07335135,8.984e-05,2]
[420185661,1775761768971,-733.07335135,8.984e-05,2]
[420185662,1775761768996,-733.07335135,8.984e-05,2]
[420185663,1775761769020,-733.07335135,8.984e-05,2]
[420185664,1775761769044,-733.07335135,8.984e-05,2]
[420185665,1775761769068,-733.07335135,8.984e-05,2]
[420185666,1775761769477,-733.07335135,8.984e-05,2]
[420185667,1775761769503,-733.07335135,8.984e-05,2]
[420185668,1775761769529,-733.07335135,8.984e-05,2]
[420185669,1775761769553,-733.07335135,8.984e-05,2]
[420185670,1775761769577,-733.07335135,8.984e-05,2]
[420185671,1775761769601,-733.07335135,8.984e-05,2]
[420185672,1775761769624,-733.07335135,8.984e-05,2]
[420185673,1775761769652,-733.07335135,8.984e-05,2]
[420185674,1775761769679,-733.07335135,8.984e-05,2]
[420185675,1775761769703,-733.07335135,8.984e-05,2]
[420185676,1775761769727,-733.07335135,8.984e-05,2]
[420185677,1775761769752,-733.07335135,8.984e-05,2]
[420185678,1775761769777,-733.07335135,8.984e-05,2]
[420185679,1775761769802,-733.07335135,8.984e-05,2]
[420185680,1775761769828,-733.07335135,8.984e-05,2]
[420185681,1775761769853,-733.07335135,8.984e-05,2]
[420185682,1775761769877,-733.07335135,8.984e-05,2]
[420185683,1775761769901,-733.07335135,8.984e-05,2]
[420185684,1775761769946,-733.07335135,8.984e-05,2]
[420185685,1775761769971,-733.07335135,8.984e-05,2]
[420185686,1775761769997,-733.07335135,8.984e-05,2]
[420185687,1775761770021,-733.07335135,8.984e-05,2]
[420185688,1775761770045,-733.07335135,8.984e-05,2]
[420185689,1775761770069,-733.07335135,8.984e-05,2]
[420185690,1775761770093,-733.07335135,8.984e-05,2]
[420185691,1775761770117,-733.07335135,8.984e-05,2]
[420185692,1775761770141,-733.07335135,8.984e-05,2]
[420185693,1775761770164,-733.07335135,8.984e-05,2]
[420185694,1775761770188,-733.07335135,8.984e-05,2]
[420185695,1775761770212,-728.01767306,8.984e-05,2]
[420185696,1775761770237,-728.01767306,8.984e-05,2]
[420185697,1775761770261,-728.01767306,8.984e-05,2]
[420185698,1775761770286,-728.01767306,8.984e-05,2]
[420185699,1775761770310,-728.01767306,8.984e-05,2]
[420185700,1775761770335,-728.01767306,8.984e-05,2]
[420185701,1775761770360,-728.01767306,8.984e-05,2]
[420185702,1775761770384,-728.01767306,8.984e-05,2]
[420185703,1775761770409,-728.01767306,8.984e-05,2]
[420185704,1775761770433,-728.01767306,8.984e-05,2]
[420185705,1775761770457,-728.01767306,8.984e-05,2]
[420185706,1775761770482,-728.01767306,8.984e-05,2]
[420185707,1775761770506,-728.01767306,8.984e-05,2]
[420185708,1775761770531,-728.01767306,8.984e-05,2]
[420185709,1775761770554,-728.01767306,8.984e-05,2]
[420185710,1775761770578,-728.01767306,8.984e-05,2]
[420185711,1775761770604,-728.01767306,8.984e-05,2]
[420185712,1775761770630,-728.01767306,8.984e-05,2]
[420185713,1775761770656,-728.01767306,8.984e-05,2]
[420185714,1775761770680,-728.01767306,8.984e-05,2]
[420185715,1775761770704,-728.01767306,8.984e-05,2]
[420185716,1775761770729,-728.01767306,8.984e-05,2]
[420185717,1775761770755,-728.01767306,8.984e-05,2]
[420185718,1775761770780,-728.01767306,8.984e-05,2]
[420185719,1775761770806,-728.01767306,8.984e-05,2]
[420185720,1775761770830,-728.01767306,8.984e-05,2]
[420185721,1775761770857,-728.01767306,8.984e-05,2]
[420185722,1775761770883,-728.01767306,8.984e-05,2]
[420185723,1775761770908,-728.01767314,8.984e-05,2]
[420185724,1775761770934,-162.13301055,8.984e-05,2]
[420185725,1775761770976,-500.0,8.984e-05,2]
[420185726,1775761770999,-500.0,8.984e-05,2]
[420185727,1775761771021,-500.0,8.984e-05,2]
[420185728,1775761771041,-500.0,8.984e-05,2]
[420185729,1775761771063,-561.07241834,8.984e-05,2]
[420185730,1775761771083,-500.0,8.984e-05,2]
[420185731,1775761771106,-405.96126418,8.984e-05,2]
[420185732,1775761771126,-211.6441015,8.984e-05,2]
[420185733,1775761771147,-500.0,8.984e-05,2]
[420185734,1775761771167,-513.13633602,8.984e-05,2]
[420185735,1775761771187,-500.0,8.984e-05,2]
[420185736,1775761771207,-418.53,9.258e-05,2]
[420185737,1775761771227,-418.53,9.532e-05,2]
[420185738,1775761771248,-418.53,9.806e-05,2]
[420185739,1775761771269,-476.0,9.88e-05,2]
[420185740,1775761771290,-255.0,9.882e-05,2]
[420185741,1775761771310,-266.0,9.989e-05,2]
[420185742,1775761771331,-266.0,9.989e-05,2]
[420185743,1775761771351,-266.0,9.989e-05,2]
[420185744,1775761771371,-266.0,9.989e-05,2]
[420185745,1775761771392,-266.0,9.989e-05,2]